fUST/lending_fUST_20250817
["ID","MTS","AMOUNT","RATE_DAILY","PERIOD"]
[379796385,1755412242122,-480.0,0.00019999,2]
[379796387,1755412242131,-480.0,0.00019999,2]
[379796389,1755412242141,-500.0,0.00019999,2]
[379796391,1755412242150,-480.0,0.00019999,2]
[379796393,1755412242160,-500.0,0.00019999,2]
[379796395,1755412242170,-510.86220697,0.00019999,2]
[379796397,1755412242179,-530.17,0.00019999,2]
[379796399,1755412242188,-151.0,0.00019999,2]
[379796401,1755412242197,-151.0,0.00019999,2]
[379796402,1755412242208,-151.0,0.00019999,2]
[379796404,1755412242218,-481.33996938,0.00019999,2]
[379796408,1755412242229,-480.0,0.00019999,2]
[379796410,1755412242238,-436.540294,0.00019999,2]
[379796412,1755412242249,-436.540294,0.00019999,2]
[379796414,1755412242258,-436.540294,0.00019999,2]
[379796416,1755412242267,-311026.58,0.0002,2]
[379796418,1755412242278,-151.0,0.0002,2]
[379796421,1755412242288,-154.69475,0.0002,2]
[379796423,1755412242297,-151.0,0.0002,2]
[379796425,1755412242306,-151.0,0.0002,2]
[379796427,1755412242316,-151.0,0.0002,2]
[379796429,1755412242325,-151.0,0.0002,2]
[379796431,1755412242335,-151.0,0.0002,2]
[379796433,1755412242344,-151.0,0.0002,2]
[379796435,1755412242353,-151.0,0.0002,2]
[379796437,1755412242362,-210.069228,0.0002,2]
[379796439,1755412242372,-151.0,0.0002,2]
[379796440,1755412242381,-210.069228,0.0002,2]
[379796442,1755412242390,-232.9588,0.0002,2]
[379796444,1755412242399,-171.488963,0.0002,2]
[379796446,1755412242408,-171.488963,0.0002,2]
[379796448,1755412242417,-500.0,0.0002,2]
[379796451,1755412242427,-533.538319,0.0002,2]
[379796452,1755412242436,-533.538319,0.0002,2]
[379796455,1755412242447,-152.920654,0.00020021,20]
[379796457,1755412242456,-800.0,0.00020026,2]
[379796459,1755412242465,-878.96458154,0.0002003,2]
[379796461,1755412242474,-152.920654,0.00020055,4]
[379796463,1755412242484,-1000.0,0.00020076,2]
[379796465,1755412242493,-151.0,0.00020076,2]
[379796467,1755412242503,-151.0,0.00020076,2]
[379796468,1755412242512,-151.0,0.00020076,2]
[379796470,1755412242522,-151.0,0.00020076,2]
[379796472,1755412242531,-1092.527657,0.00020076,2]
[379796474,1755412242541,-1092.527657,0.00020076,2]
[379796477,1755412242551,-878.96458154,0.00020076,2]
[379796479,1755412242561,-1178.38819977,0.00020076,2]
[379796481,1755412242570,-805.03861425,0.00020079,2]
[379796483,1755412242580,-800.0,0.00020092,2]
[379796485,1755412242589,-151.0,0.00020092,2]
[379796487,1755412242598,-151.0,0.00020092,2]
[379796489,1755412242608,-236.598099,0.00020092,2]
[379796491,1755412242618,-151.0,0.00020092,2]
[379796493,1755412242627,-171.488963,0.00020092,2]
[379796495,1755412242636,-171.488963,0.00020092,2]
[379796497,1755412242647,-533.538319,0.00020092,2]
[379796499,1755412242656,-533.538319,0.00020092,2]
[379796501,1755412242665,-152.920654,0.00020097,3]
[379796503,1755412242674,-153.0,0.000201,2]
[379796504,1755412242684,-153.0,0.000201,2]
[379796506,1755412242694,-151.0,0.000201,4]
[379796508,1755412242703,-151.0,0.000201,4]
[379796510,1755412242713,-151.0,0.000201,3]
[379796513,1755412242723,-151.0,0.000201,4]
[379796515,1755412242733,-153.0,0.000201,2]
[379796517,1755412242743,-11131.59102156,0.000201,2]
[379796519,1755412242752,-151.71134263,0.00020122,4]
[379796521,1755412242762,-152.920654,0.00020149,10]
[379796523,1755412242771,-152.920654,0.00020153,5]
[379796525,1755412242780,-153.0,0.00020169,2]
[379796527,1755412242789,-153.0,0.00020169,2]
[379796529,1755412242798,-153.0,0.00020169,2]
[379796530,1755412242808,-153.0,0.00020169,2]
[379796532,1755412242817,-153.0,0.00020169,2]
[379796535,1755412242827,-469.55448122,0.00020173,2]
[379796537,1755412242836,-500.0,0.00020173,2]
[379796538,1755412242845,-500.0,0.00020173,2]
[379796540,1755412242855,-500.0,0.00020173,2]
[379796542,1755412242864,-500.0,0.00020173,2]
[379796545,1755412242874,-500.0,0.00020173,2]
[379796546,1755412242884,-558.58990144,0.00020173,2]
[379796549,1755412242895,-500.0,0.00020173,2]
[379796551,1755412242904,-500.0,0.00020173,2]
[379796553,1755412242914,-500.0,0.00020173,2]
[379796555,1755412242924,-500.0,0.00020173,2]
[379796557,1755412242934,-500.0,0.00020173,2]
[379796558,1755412242943,-501.71348276,0.00020173,2]
[379796560,1755412242953,-500.0,0.00020173,2]
[379796562,1755412242963,-502.72191362,0.00020173,2]
[379796564,1755412242972,-500.0,0.00020173,2]
[379796566,1755412242981,-407.81890906,0.00020173,2]
[379796568,1755412242991,-500.0,0.00020173,2]
[379796571,1755412243001,-502.27964411,0.00020173,2]
[379796573,1755412243011,-500.0,0.00020173,2]
[379796574,1755412243020,-500.0,0.00020173,2]
[379796576,1755412243030,-160.31078128,0.00020173,2]
[379796578,1755412243039,-500.0,0.00020173,2]
[379796580,1755412243048,-500.0,0.00020173,2]
[379796582,1755412243058,-226.42208039,0.00020173,2]
[379796584,1755412243067,-504.99955677,0.00020173,2]
[379796586,1755412243076,-500.0,0.00020173,2]
[379796589,1755412243086,-500.0,0.00020173,2]
[379796590,1755412243095,-500.0,0.00020173,2]
[379796592,1755412243105,-151.0,0.00020173,2]
[379796594,1755412243114,-151.0,0.00020173,2]
[379796596,1755412243123,-151.0,0.00020173,2]
[379796598,1755412243133,-210.069228,0.00020173,2]
[379796600,1755412243142,-151.0,0.00020173,2]
[379796602,1755412243151,-210.069228,0.00020173,2]
[379796604,1755412243161,-171.488963,0.00020173,2]
[379796606,1755412243171,-171.488963,0.00020173,2]
[379796608,1755412243180,-533.538319,0.00020173,2]
[379796611,1755412243190,-533.538319,0.00020173,2]
[379796613,1755412243199,-151.0,0.00020175,2]
[379796614,1755412243210,-154.46099,0.00020175,2]
[379796616,1755412243220,-151.0,0.00020175,2]
[379796618,1755412243230,-151.0,0.00020175,2]
[379796621,1755412243241,-152.129772,0.00020175,2]
[379796623,1755412243251,-151.0,0.00020175,2]
[379796625,1755412243260,-151.0,0.00020175,2]
[379796627,1755412243270,-151.0,0.00020175,2]
[379796629,1755412243279,-151.0,0.00020175,2]
[379796630,1755412243288,-151.0,0.00020175,2]
[379796632,1755412243298,-283.542671,0.00020175,2]
[379796634,1755412243307,-151.0,0.00020175,2]
[379796636,1755412243317,-480.0,0.00020175,2]
[379796638,1755412243327,-480.0,0.00020175,2]
[379796640,1755412243337,-481.69646888,0.00020175,2]
[379796642,1755412243346,-460.0,0.00020175,2]
[379796644,1755412243355,-480.0,0.00020175,2]
[379796646,1755412243365,-481.99373315,0.00020175,2]
[379796648,1755412243374,-480.0,0.00020175,2]
[379796650,1755412243384,-484.84837285,0.00020175,2]
[379796652,1755412243394,-480.0,0.00020175,2]
[379796654,1755412243403,-480.0,0.00020175,2]
[379796656,1755412243412,-480.0,0.00020175,2]
[379796658,1755412243422,-481.1975748,0.00020175,2]
[379796660,1755412243432,-460.16366298,0.00020175,2]
[379796662,1755412243441,-480.0,0.00020175,2]
[379796664,1755412243451,-480.0,0.00020175,2]
[379796666,1755412243462,-466.18393589,0.00020175,2]
[379796668,1755412243471,-482.37758965,0.00020175,2]
[379796670,1755412243480,-480.0,0.00020175,2]
[379796672,1755412243489,-480.0,0.00020175,2]
[379796674,1755412243498,-480.0,0.00020175,2]
[379796675,1755412243507,-480.0,0.00020175,2]
[379796677,1755412243516,-152.1026562,0.00020175,2]
[379796679,1755412243526,-151.0,0.00020175,2]
[379796681,1755412243535,-151.0,0.00020175,2]
[379796683,1755412243544,-151.0,0.00020175,2]
[379796685,1755412243554,-483.20327123,0.00020175,2]
[379796687,1755412243563,-151.0,0.00020175,2]
[379796689,1755412243573,-500.0,0.00020175,2]
[379796691,1755412243582,-198.0,0.00020175,2]
[379796693,1755412243592,-254.07947778,0.00020175,2]
[379796695,1755412243601,-151.0,0.00020175,2]
[379796697,1755412243610,-151.0,0.00020175,2]
[379796699,1755412243620,-151.884947,0.00020175,2]
[379796701,1755412243630,-480.0,0.00020175,2]
[379796703,1755412243639,-480.0,0.00020175,2]
[379796705,1755412243648,-480.0,0.00020175,2]
[379796707,1755412243657,-556.99,0.00020175,2]
[379796710,1755412243667,-1092.527657,0.00020175,2]
[379796713,1755412243677,-1092.527657,0.00020175,2]
[379796715,1755412243686,-1092.527657,0.00020175,2]
[379796717,1755412243696,-1092.527657,0.00020175,2]
[379796719,1755412243705,-1092.527657,0.00020175,2]
[379796721,1755412243714,-1092.527657,0.00020175,2]
[379796723,1755412243724,-480.90647927,0.00020175,2]
[379796725,1755412243733,-237.90426437,0.00020175,2]
[379796727,1755412243743,-480.0,0.00020175,2]
[379796729,1755412243752,-166.360819,0.00020175,2]
[379796731,1755412243762,-480.0,0.00020175,2]
[379796733,1755412243771,-151.0,0.00020175,2]
[379796735,1755412243780,-151.0,0.00020175,2]
[379796737,1755412243789,-151.0,0.00020175,2]
[379796738,1755412243799,-151.0,0.00020175,2]
[379796740,1755412243808,-480.0,0.00020175,2]
[379796742,1755412243817,-151.0,0.00020175,2]
[379796744,1755412243827,-151.0,0.00020175,2]
[379796745,1755412243836,-151.0,0.00020175,2]
[379796747,1755412243845,-151.0,0.00020175,2]
[379796749,1755412243855,-303.40457189,0.00020175,2]
[379796750,1755412243865,-481.82129693,0.00020175,2]
[379796752,1755412243875,-480.0,0.00020175,2]
[379796754,1755412243885,-480.0,0.00020175,2]
[379796756,1755412243894,-480.0,0.00020175,2]
[379796757,1755412243903,-186.757521,0.00020175,2]
[379796759,1755412243913,-480.0,0.00020175,2]
[379796761,1755412243923,-480.0,0.00020175,2]
[379796763,1755412243932,-480.0,0.00020175,2]
[379796764,1755412243941,-480.0,0.00020175,2]
[379796766,1755412243951,-480.47949594,0.00020175,2]
[379796768,1755412243960,-151.0,0.00020175,2]
[379796770,1755412243970,-151.0,0.00020175,2]
[379796771,1755412243979,-500.0,0.00020175,2]
[379796773,1755412243989,-480.0,0.00020175,2]
[379796775,1755412243998,-480.0,0.00020175,2]
[379796776,1755412244007,-480.0,0.00020175,2]
[379796778,1755412244016,-480.0,0.00020175,2]
[379796780,1755412244026,-500.0,0.00020175,2]
[379796781,1755412244035,-500.0,0.00020175,2]
[379796783,1755412244044,-480.0,0.00020175,2]
[379796785,1755412244053,-210.069228,0.00020175,2]
[379796786,1755412244062,-210.069228,0.00020175,2]
[379796788,1755412244072,-210.069228,0.00020175,2]
[379796790,1755412244082,-210.069228,0.00020175,2]
[379796792,1755412244091,-210.069228,0.00020175,2]
[379796793,1755412244100,-210.069228,0.00020175,2]
[379796795,1755412244110,-210.069228,0.00020175,2]
[379796797,1755412244119,-210.069228,0.00020175,2]
[379796798,1755412244129,-210.069228,0.00020175,2]
[379796800,1755412244138,-210.069228,0.00020175,2]
[379796802,1755412244147,-210.069228,0.00020175,2]
[379796804,1755412244157,-210.069229,0.00020175,2]
[379796805,1755412244166,-151.0,0.00020175,2]
[379796807,1755412244175,-151.0,0.00020175,2]
[379796809,1755412244184,-480.0,0.00020175,2]
[379796811,1755412244193,-480.0,0.00020175,2]
[379796813,1755412244205,-171.488963,0.00020175,2]
[379796814,1755412244218,-171.488962,0.00020175,2]
[379796816,1755412244228,-480.0,0.00020175,2]
[379796818,1755412244237,-480.0,0.00020175,2]
[379796819,1755412244248,-480.0,0.00020175,2]
[379796821,1755412244258,-480.0,0.00020175,2]
[379796823,1755412244268,-480.0,0.00020175,2]
[379796825,1755412244277,-480.0,0.00020175,2]
[379796827,1755412244287,-480.0,0.00020175,2]
[379796829,1755412244297,-533.538319,0.00020175,2]
[379796830,1755412244307,-533.538319,0.00020175,2]
[379796832,1755412244316,-480.0,0.00020175,2]
[379796834,1755412244327,-533.538319,0.00020175,2]
[379796836,1755412244336,-533.538315,0.00020175,2]
[379796838,1755412244345,-480.0,0.00020175,2]
[379796839,1755412244354,-231.89646388,0.00020176,2]
[379796841,1755412244364,-480.53728413,0.00020176,2]
[379796843,1755412244374,-338.87615458,0.00020176,2]
[379796845,1755412244383,-460.99779674,0.00020176,2]
[379796847,1755412244393,-480.0,0.00020176,2]
[379796848,1755412244403,-480.0,0.00020176,2]
[379796850,1755412244413,-481.1327931,0.00020176,2]
[379796852,1755412244423,-480.0,0.00020176,2]
[379796854,1755412244433,-480.0,0.00020176,2]
[379796856,1755412244443,-481.28496555,0.00020176,2]
[379796857,1755412244453,-480.85728125,0.00020176,2]
[379796859,1755412244462,-461.35156625,0.00020176,2]
[379796871,1755412244589,-481.24378312,0.00020176,2]
[379796872,1755412244599,-460.56391188,0.00020176,2]
[379796874,1755412244609,-480.0,0.00020176,2]
[379796876,1755412244619,-481.67468762,0.00020176,2]
[379796877,1755412244629,-460.97323366,0.00020176,2]
[379796879,1755412244638,-481.75664739,0.00020176,2]
[379796881,1755412244648,-151.0,0.00020176,2]
[379796883,1755412244657,-151.0,0.00020176,2]
[379796885,1755412244667,-480.67061396,0.00020176,2]
[379796886,1755412244676,-480.0,0.00020176,2]
[379796888,1755412244685,-480.0,0.00020176,2]
[379796890,1755412244695,-480.0,0.00020176,2]
[379796892,1755412244704,-480.0,0.00020176,2]
[379796894,1755412244713,-482.58341065,0.00020176,2]
[379796895,1755412244722,-480.35901398,0.00020176,2]
[379796897,1755412244732,-480.28021559,0.00020176,2]
[379796899,1755412244741,-480.0,0.00020176,2]
[379796901,1755412244751,-480.0,0.00020176,2]
[379796902,1755412244760,-480.43415588,0.00020176,2]
[379796904,1755412244770,-480.0,0.00020176,2]
[379796906,1755412244779,-480.0,0.00020176,2]
[379796908,1755412244788,-480.0,0.00020176,2]
[379796910,1755412244797,-483.7079111,0.00020176,2]
[379796912,1755412244806,-460.40971989,0.00020176,2]
[379796913,1755412244816,-481.61483589,0.00020176,2]
[379796915,1755412244825,-481.33138643,0.00020176,2]
[379796917,1755412244834,-151.0,0.00020176,2]
[379796919,1755412244843,-151.0,0.00020176,2]
[379796920,1755412244852,-237.8669143,0.00020176,2]
[379796922,1755412244862,-151.0,0.00020176,2]
[379796924,1755412244871,-173.6120146,0.00020176,2]
[379796926,1755412244880,-484.19782617,0.00020176,2]
[379796928,1755412244889,-481.5508784,0.00020176,2]
[379796929,1755412244899,-483.47908746,0.00020176,2]
[379796931,1755412244908,-482.71192169,0.00020176,2]
[379796933,1755412244918,-463.40485184,0.00020176,2]
[379796935,1755412244927,-480.35036134,0.00020176,2]
[379796937,1755412244936,-482.20957872,0.00020176,2]
[379796938,1755412244946,-480.97423979,0.00020176,2]
[379796940,1755412244955,-480.0,0.00020176,2]
[379796942,1755412244965,-481.2000124,0.00020176,2]
[379796944,1755412244974,-481.85531563,0.00020176,2]
[379796946,1755412244984,-480.0,0.00020176,2]
[379796947,1755412244994,-480.0,0.00020176,2]
[379796949,1755412245003,-480.0,0.00020176,2]
[379796951,1755412245012,-482.9499722,0.00020176,2]
[379796953,1755412245022,-480.30376216,0.00020176,2]
[379796954,1755412245031,-420.76148878,0.00020176,2]
[379796956,1755412245041,-480.0,0.00020176,2]
[379796958,1755412245050,-481.90796591,0.00020176,2]
[379796960,1755412245059,-151.0,0.00020176,2]
[379796962,1755412245068,-151.0,0.00020176,2]
[379796963,1755412245077,-480.0,0.00020176,2]
[379796965,1755412245088,-480.0,0.00020176,2]
[379796967,1755412245098,-480.0,0.00020176,2]
[379796969,1755412245107,-460.35938903,0.00020176,2]
[379796971,1755412245116,-461.57918253,0.00020176,2]
[379796972,1755412245125,-480.0,0.00020176,2]
[379796974,1755412245135,-481.43764901,0.00020176,2]
[379796976,1755412245144,-485.98603773,0.00020176,2]
[379796978,1755412245154,-481.41692069,0.00020176,2]
[379796980,1755412245163,-480.0,0.00020176,2]
[379796981,1755412245172,-480.0,0.00020176,2]
[379796983,1755412245182,-1003.3678954,0.00020176,2]
[379796985,1755412245191,-462.14739984,0.00020176,2]
[379796987,1755412245201,-481.08917801,0.00020176,2]
[379796989,1755412245213,-481.66945004,0.00020176,2]
[379796990,1755412245222,-480.0,0.00020176,2]
[379796992,1755412245235,-480.55874392,0.00020176,2]
[379796996,1755412245245,-482.00773645,0.00020176,2]
[379796998,1755412245254,-480.0,0.00020176,2]
[379797001,1755412245264,-482.08059744,0.00020176,2]
[379797003,1755412245274,-480.0,0.00020176,2]
[379797004,1755412245283,-481.77655495,0.00020176,2]
[379797006,1755412245292,-480.0,0.00020176,2]
[379797008,1755412245301,-465.1207413,0.00020176,2]
[379797010,1755412245311,-462.19247914,0.00020176,2]
[379797012,1755412245320,-461.17788485,0.00020176,2]
[379797013,1755412245329,-480.0,0.00020176,2]
[379797015,1755412245339,-151.0,0.00020176,2]
[379797017,1755412245348,-480.0,0.00020176,2]
[379797019,1755412245358,-480.0,0.00020176,2]
[379797021,1755412245367,-485.86723308,0.00020176,2]
[379797022,1755412245377,-462.24972677,0.00020176,2]
[379797024,1755412245386,-480.0,0.00020176,2]
[379797026,1755412245395,-482.38677834,0.00020176,2]
[379797028,1755412245405,-480.0,0.00020176,2]
[379797029,1755412245415,-461.33403937,0.00020176,2]
[379797031,1755412245424,-461.29922661,0.00020176,2]
[379797033,1755412245434,-480.0,0.00020176,2]
[379797035,1755412245443,-151.0,0.00020176,2]
[379797037,1755412245453,-151.0,0.00020176,2]
[379797038,1755412245462,-151.0,0.00020176,2]
[379797040,1755412245472,-151.0,0.00020176,2]
[379797042,1755412245482,-483.28049865,0.00020176,2]
[379797044,1755412245493,-151.0,0.00020176,2]
[379797046,1755412245520,-151.0,0.00020176,2]
[379797048,1755412245560,-151.0,0.00020176,2]
[379797050,1755412245587,-151.0,0.00020176,2]
[379797052,1755412245596,-151.0,0.00020176,2]
[379797053,1755412245605,-480.0,0.00020176,2]
[379797055,1755412245615,-480.0,0.00020176,2]
[379797057,1755412245624,-484.86492769,0.00020176,2]
[379797059,1755412245634,-480.0,0.00020176,2]
[379797061,1755412245643,-480.0,0.00020176,2]
[379797062,1755412245653,-481.77612672,0.00020176,2]
[379797064,1755412245662,-304.56179385,0.00020176,2]
[379797066,1755412245672,-480.0,0.00020176,2]
[379797068,1755412245681,-480.0,0.00020176,2]
[379797070,1755412245690,-480.0,0.00020176,2]
[379797071,1755412245700,-480.0,0.00020176,2]
[379797073,1755412245710,-480.0,0.00020176,2]
[379797075,1755412245719,-480.0,0.00020176,2]
[379797077,1755412245729,-480.0,0.00020176,2]
[379797079,1755412245738,-481.67,0.00020176,2]
[379797080,1755412245748,-480.0,0.00020176,2]
[379797082,1755412245757,-480.0,0.00020176,2]
[379797084,1755412245767,-1092.527657,0.00020176,2]
[379797086,1755412245776,-1092.527657,0.00020176,2]
[379797088,1755412245785,-1092.527657,0.00020176,2]
[379797090,1755412245795,-1092.527657,0.00020176,2]
[379797091,1755412245804,-1092.527657,0.00020176,2]
[379797093,1755412245814,-1092.527657,0.00020176,2]
[379797095,1755412245823,-1092.527657,0.00020176,2]
[379797097,1755412245834,-1092.527657,0.00020176,2]
[379797099,1755412245843,-1092.527657,0.00020176,2]
[379797100,1755412245853,-1092.527657,0.00020176,2]
[379797102,1755412245862,-1092.527657,0.00020176,2]
[379797104,1755412245871,-1092.527655,0.00020176,2]
[379797106,1755412245880,-480.0,0.00020176,2]
[379797107,1755412245890,-480.0,0.00020176,2]
[379797109,1755412245900,-151.0,0.00020176,2]
[379797111,1755412245909,-151.0,0.00020176,2]
[379797113,1755412245919,-151.0,0.00020176,2]
[379797115,1755412245929,-151.0,0.00020176,2]
[379797117,1755412245938,-151.0,0.00020176,2]
[379797119,1755412245948,-151.0,0.00020176,2]
[379797120,1755412245957,-151.0,0.00020176,2]
[379797122,1755412245967,-262.994763,0.00020176,2]
[379797124,1755412245977,-480.0,0.00020176,2]
[379797126,1755412245986,-351.592917,0.00020176,2]
[379797128,1755412245996,-480.0,0.00020176,2]
[379797130,1755412246006,-166.0,0.00020176,2]
[379797131,1755412246016,-1762.0,0.00020176,2]
[379797133,1755412246025,-1762.0,0.00020176,2]
[379797135,1755412246035,-1762.0,0.00020176,2]
[379797137,1755412246044,-1762.0,0.00020176,2]
[379797139,1755412246054,-1762.0,0.00020176,2]
[379797140,1755412246063,-1762.0,0.00020176,2]
[379797142,1755412246072,-1762.0,0.00020176,2]
[379797144,1755412246082,-1762.0,0.00020176,2]
[379797146,1755412246092,-1762.0,0.00020176,2]
[379797148,1755412246101,-1762.0,0.00020176,2]
[379797149,1755412246110,-1762.0,0.00020176,2]
[379797151,1755412246119,-1762.0,0.00020176,2]
[379797153,1755412246128,-1762.0,0.00020176,2]
[379797155,1755412246139,-1762.0,0.00020176,2]
[379797156,1755412246148,-1762.0,0.00020176,2]
[379797158,1755412246159,-1762.0,0.00020176,2]
[379797160,1755412246169,-1762.0,0.00020176,2]
[379797162,1755412246178,-199.06797549,0.00020176,2]
[379797164,1755412246187,-1762.0,0.00020176,2]
[379797166,1755412246197,-1762.0,0.00020176,2]
[379797167,1755412246206,-1450.32812408,0.00020176,2]
[379797169,1755412246219,-1762.0,0.00020176,2]
[379797171,1755412246229,-326.0,0.00020176,2]
[379797173,1755412246239,-326.0,0.00020176,2]
[379797175,1755412246249,-331.86915996,0.00020176,2]
[379797177,1755412246260,-326.0,0.00020176,2]
[379797178,1755412246271,-326.0,0.00020176,2]
[379797180,1755412246280,-326.0,0.00020176,2]
[379797182,1755412246289,-326.0,0.00020176,2]
[379797184,1755412246298,-480.0,0.00020176,2]
[379797186,1755412246308,-480.0,0.00020176,2]
[379797187,1755412246317,-480.0,0.00020176,2]
[379797189,1755412246326,-480.0,0.00020176,2]
[379797191,1755412246336,-480.0,0.00020176,2]
[379797193,1755412246345,-480.0,0.00020176,2]
[379797195,1755412246355,-5320.12,0.00020176,2]
[379797196,1755412246365,-480.0,0.00020176,2]
[379797198,1755412246375,-482.1716869,0.00020176,2]
[379797200,1755412246384,-480.0,0.00020176,2]
[379797202,1755412246393,-480.0,0.00020176,2]
[379797204,1755412246406,-490.09019039,0.00020176,2]
[379797206,1755412246415,-480.0,0.00020176,2]
[379797208,1755412246425,-705.19,0.00020176,2]
[379797210,1755412246433,-1078.02,0.00020176,2]
[379797211,1755412246442,-480.4691863,0.00020176,2]
[379797213,1755412246452,-480.0,0.00020176,2]
[379797215,1755412246461,-480.84433858,0.00020176,2]
[379797217,1755412246470,-442.12247574,0.00020176,2]
[379797219,1755412246479,-480.0,0.00020176,2]
[379797221,1755412246488,-480.0,0.00020176,2]
[379797222,1755412246498,-480.0,0.00020176,2]
[379797224,1755412246508,-481.78646598,0.00020176,2]
[379797226,1755412246517,-481.80274514,0.00020176,2]
[379797228,1755412246526,-480.0,0.00020176,2]
[379797230,1755412246535,-482.15538229,0.00020176,2]
[379797232,1755412246544,-480.74174621,0.00020176,2]
[379797233,1755412246553,-480.0,0.00020176,2]
[379797235,1755412246562,-481.14369091,0.00020176,2]
[379797237,1755412246571,-460.23254461,0.00020176,2]
[379797239,1755412246580,-480.0,0.00020176,2]
[379797241,1755412246590,-480.0,0.00020176,2]
[379797243,1755412246599,-3170.73,0.00020176,2]
[379797244,1755412246608,-491.59372959,0.00020176,2]
[379797245,1755412246617,-1762.0,0.00020176,2]
[379797246,1755412246626,-1167.40384014,0.00020176,2]
[379797247,1755412246635,-151.0,0.00020177,2]
[379797248,1755412246644,-1103.02,0.00020177,2]
[379797249,1755412246653,-480.0,0.00020177,2]
[379797250,1755412246663,-225.289955,0.00020187,2]
[379797251,1755412246672,-500.0,0.00020199,2]
[379797252,1755412246681,-500.0,0.00020199,2]
[379797253,1755412246691,-500.0,0.00020199,2]
[379797254,1755412246700,-151.0,0.000202,2]
[379797255,1755412246709,-151.0,0.000202,2]
[379797256,1755412246718,-151.0,0.000202,2]
[379797257,1755412246727,-151.0,0.000202,2]
[379797258,1755412246736,-370000.0,0.000202,2]
[379797259,1755412246745,-151.0,0.000202,2]
[379797260,1755412246754,-151.0,0.000202,2]
[379797261,1755412246763,-151.0,0.000202,2]
[379797262,1755412246773,-169.510399,0.000202,2]
[379797263,1755412246782,-169.510399,0.000202,2]
[379797264,1755412246791,-151.0,0.000202,2]
[379797265,1755412246800,-151.0,0.000202,3]
[379797266,1755412246809,-151.0,0.000202,3]
[379797267,1755412246818,-152.920654,0.00020213,2]
[379797268,1755412246827,-800.0,0.00020219,2]
[379797269,1755412246836,-480.0,0.00020223,2]
[379797270,1755412246844,-480.0,0.00020223,2]
[379797271,1755412246854,-480.0,0.00020223,2]
[379797272,1755412246864,-1259.23,0.00020223,2]
[379797273,1755412246873,-1057.57,0.00020223,2]
[379797274,1755412246882,-152.920654,0.00020227,2]
[379797275,1755412246891,-152.920654,0.00020241,2]
[379797276,1755412246900,-800.0,0.00020244,2]
[379797277,1755412246909,-480.0,0.00020245,2]
[379797278,1755412246917,-480.0,0.00020246,2]
[379797279,1755412246927,-480.0,0.00020246,2]
[379797280,1755412246935,-480.0,0.00020246,2]
[379797281,1755412246944,-905.34,0.00020246,2]
[379797282,1755412246953,-480.0,0.00020246,2]
[379797283,1755412246963,-1162.0,0.00020246,2]
[379797284,1755412246971,-480.0,0.00020246,2]
[379797285,1755412246981,-860.11,0.00020246,2]
[379797286,1755412246989,-480.0,0.00020246,2]
[379797287,1755412246999,-480.0,0.00020246,2]
[379797288,1755412247008,-480.0,0.00020246,2]
[379797289,1755412247017,-480.0,0.00020246,2]
[379797290,1755412247026,-1921.46,0.00020246,2]
[379797291,1755412247034,-480.0,0.00020246,2]
[379797292,1755412247044,-480.0,0.00020246,2]